fUST/lending_fUST_20260106
["ID","MTS","AMOUNT","RATE_DAILY","PERIOD"]
[400541521,1767707438260,-500.22122731,0.00013273,2]
[400541522,1767707438270,-500.75815525,0.00013273,2]
[400541523,1767707438279,-500.0,0.00013273,2]
[400541524,1767707438289,-465.83435132,0.00013273,2]
[400541525,1767707438298,-501.72577192,0.00013273,2]
[400541526,1767707438308,-500.0,0.00013273,2]
[400541527,1767707438317,-500.0,0.00013273,2]
[400541528,1767707438326,-167.48106999,0.00013273,2]
[400541529,1767707438336,-500.0,0.00013273,2]
[400541530,1767707438346,-500.45942406,0.00013273,2]
[400541531,1767707438357,-500.0,0.00013273,2]
[400541532,1767707438366,-500.48772774,0.00013273,2]
[400541533,1767707438375,-210.68917911,0.00013273,2]
[400541534,1767707438384,-171.59960392,0.00013273,2]
[400541535,1767707438394,-500.0,0.00013273,2]
[400541536,1767707438404,-500.98834763,0.00013273,2]
[400541537,1767707438413,-500.0,0.00013273,2]
[400541538,1767707438423,-500.2543972,0.00013273,2]
[400541539,1767707438432,-185.45250914,0.00013273,2]
[400541540,1767707438442,-500.41288445,0.00013273,2]
[400541541,1767707438451,-435.85146514,0.00013273,2]
[400541542,1767707438460,-500.0,0.00013273,2]
[400541543,1767707438470,-501.18185428,0.00013273,2]
[400541544,1767707438479,-500.0,0.00013273,2]
[400541545,1767707438488,-500.58173584,0.00013273,2]
[400541546,1767707438497,-536.41268697,0.00013273,2]
[400541547,1767707438507,-501.46014836,0.00013273,2]
[400541548,1767707438515,-500.53921028,0.00013273,2]
[400541549,1767707438525,-500.92913972,0.00013273,2]
[400541550,1767707438534,-502.04215387,0.00013273,2]
[400541551,1767707438543,-232.41734948,0.00013273,2]
[400541552,1767707438552,-500.29667581,0.00013273,2]
[400541553,1767707438561,-500.0,0.00013273,2]
[400541554,1767707438572,-500.0,0.00013273,2]
[400541555,1767707438582,-500.0,0.00013454,2]
[400541556,1767707438591,-2030.296672,0.00013454,2]
[400541557,1767707438601,-500.0,0.00013454,2]
[400541558,1767707438611,-500.0,0.00013454,2]
[400541559,1767707438622,-533.88981491,0.00013454,2]
[400541560,1767707438631,-500.0,0.00013454,2]
[400541561,1767707438642,-500.0,0.00013454,2]
[400541562,1767707438652,-500.0,0.00013454,2]
[400541563,1767707438662,-266.22272294,0.00013454,2]
[400541564,1767707438671,-30000.0,0.00013454,2]
[400541565,1767707438680,-2579.17784983,0.00013454,2]
[400541566,1767707438690,-3766.74030178,0.00013476,2]
[400541567,1767707438699,-2105.41764886,0.00013509,2]
[400541568,1767707438708,-2183.31810187,0.00013564,2]
[400541569,1767707438717,-10230.73456472,0.00013599,2]
[400541570,1767707438726,-2264.10087164,0.00013619,2]
[400541571,1767707438735,-300.0,0.00013673,2]
[400541572,1767707438744,-168.43591462,0.00013674,2]
[400541573,1767707438753,-71838.529182,0.00013698,2]
[400541574,1767707438762,-47892.352788,0.00013698,2]
[400541575,1767707438771,-500.0,0.00013698,2]
[400541576,1767707438780,-500.0,0.00013698,2]
[400541577,1767707438789,-500.0,0.00013698,2]
[400541578,1767707438798,-500.0,0.00013698,2]
[400541579,1767707438807,-500.0,0.00013698,2]
[400541580,1767707438816,-500.0,0.00013698,2]
[400541581,1767707438825,-500.0,0.00013698,2]
[400541582,1767707438834,-500.0,0.00013698,2]
[400541583,1767707438843,-500.0,0.00013698,2]
[400541584,1767707438853,-500.0,0.00013698,2]
[400541585,1767707438862,-500.0,0.00013698,2]
[400541586,1767707438871,-500.0,0.00013698,2]
[400541587,1767707438881,-500.0,0.00013698,2]
[400541588,1767707438891,-500.0,0.00013698,2]
[400541589,1767707438900,-222.25098138,0.00013698,2]
[400541590,1767707438909,-583.08,0.00013698,2]
[400541591,1767707438918,-583.08,0.00013698,2]
[400541592,1767707438927,-583.08,0.00013698,2]
[400541593,1767707438937,-583.08,0.00013698,2]
[400541594,1767707438947,-583.08,0.00013698,2]
[400541595,1767707438956,-583.08,0.00013698,2]
[400541596,1767707438966,-583.08,0.00013698,2]
[400541597,1767707438975,-583.08,0.00013698,2]
[400541598,1767707438985,-583.08,0.00013698,2]
[400541599,1767707438994,-583.08,0.00013698,2]
[400541600,1767707439004,-583.08,0.00013698,2]
[400541601,1767707439013,-583.08,0.00013698,2]
[400541602,1767707439023,-583.08,0.00013698,2]
[400541603,1767707439033,-583.08,0.00013698,2]
[400541604,1767707439043,-583.08,0.00013698,2]
[400541605,1767707439053,-583.08,0.00013698,2]
[400541606,1767707439063,-583.08,0.00013698,2]
[400541607,1767707439073,-583.08,0.00013698,2]
[400541608,1767707439083,-583.08,0.00013698,2]
[400541609,1767707439093,-583.08,0.00013698,2]
[400541610,1767707439103,-583.08,0.00013698,2]
[400541611,1767707439113,-583.08,0.00013698,2]
[400541612,1767707439123,-583.08,0.00013698,2]
[400541613,1767707439132,-583.24672867,0.00013698,2]
[400541614,1767707439142,-500.0,0.00013698,2]
[400541615,1767707439153,-1130.35,0.00013698,2]
[400541616,1767707439163,-1130.35,0.00013698,2]
[400541617,1767707439172,-1130.35,0.00013698,2]
[400541618,1767707439182,-1130.35,0.00013698,2]
[400541619,1767707439191,-1130.35,0.00013698,2]
[400541620,1767707439200,-1130.35,0.00013698,2]
[400541621,1767707439209,-1130.35,0.00013698,2]
[400541622,1767707439219,-1130.35,0.00013698,2]
[400541624,1767707439359,-1130.35,0.00013698,2]
[400541625,1767707439369,-1130.35,0.00013698,2]
[400541626,1767707439379,-1130.35,0.00013698,2]
[400541627,1767707439388,-1130.35,0.00013698,2]
[400541628,1767707439397,-1130.35,0.00013698,2]
[400541629,1767707439407,-1130.35,0.00013698,2]
[400541630,1767707439416,-1130.35,0.00013698,2]
[400541631,1767707439426,-1130.35,0.00013698,2]
[400541632,1767707439436,-1130.35,0.00013698,2]
[400541633,1767707439445,-1130.35,0.00013698,2]
[400541634,1767707439454,-1130.35,0.00013698,2]
[400541635,1767707439463,-1130.35,0.00013698,2]
[400541636,1767707439472,-1130.35,0.00013698,2]
[400541637,1767707439481,-1130.35,0.00013698,2]
[400541638,1767707439490,-1130.35,0.00013698,2]
[400541639,1767707439498,-1130.36437694,0.00013698,2]
[400541640,1767707439507,-200.0,0.00013698,2]
[400541641,1767707439517,-500.0,0.00013698,2]
[400541643,1767707439527,-1000.0,0.00013699,2]
[400541645,1767707439536,-1200.308953,0.00013699,2]
[400541647,1767707439545,-885.4942762,0.00013699,2]
[400541649,1767707439554,-639.63755637,0.00013699,2]
[400541651,1767707439564,-220.37131177,0.00013699,2]
[400541652,1767707439577,-338.10821472,0.00013699,2]
[400541654,1767707439586,-500.0,0.00013699,2]
[400541656,1767707439595,-443.89072638,0.00013699,2]
[400541658,1767707439605,-501.0386878,0.00013699,2]
[400541660,1767707439616,-500.0,0.00013699,2]
[400541661,1767707439625,-500.0,0.00013699,2]
[400541662,1767707439634,-500.0,0.00013699,2]
[400541663,1767707439643,-500.0,0.00013699,2]
[400541664,1767707439653,-500.54517436,0.00013699,2]
[400541665,1767707439661,-500.0,0.00013699,2]
[400541666,1767707439671,-501.00450759,0.00013699,2]
[400541667,1767707439680,-500.81877837,0.00013699,2]
[400541668,1767707439690,-500.0,0.00013699,2]
[400541670,1767707439699,-500.84667986,0.00013699,2]
[400541671,1767707439707,-634.09365022,0.00013699,2]
[400541672,1767707439716,-5929.53424878,0.00013699,2]
[400541673,1767707439726,-5929.53424878,0.00013699,2]
[400541674,1767707439735,-5929.53424878,0.00013699,2]
[400541675,1767707439744,-5929.53424878,0.00013699,2]
[400541677,1767707439753,-5929.53424878,0.00013699,2]
[400541678,1767707439762,-5929.53424878,0.00013699,2]
[400541680,1767707439771,-5929.53424878,0.00013699,2]
[400541682,1767707439780,-5929.53424878,0.00013699,2]
[400541683,1767707439790,-5929.53424878,0.00013699,2]
[400541684,1767707439799,-5929.53424878,0.00013699,2]
[400541685,1767707439808,-5929.53424878,0.00013699,2]
[400541686,1767707439817,-5929.53424878,0.00013699,2]
[400541687,1767707439827,-5929.53424878,0.00013699,2]
[400541688,1767707439836,-5929.53424878,0.00013699,2]
[400541689,1767707439845,-5929.53424878,0.00013699,2]
[400541690,1767707439854,-5929.53424878,0.00013699,2]
[400541691,1767707439863,-5929.53424878,0.00013699,2]
[400541692,1767707439872,-5929.53424878,0.00013699,2]
[400541693,1767707439882,-5929.53424878,0.00013699,2]
[400541694,1767707439891,-5929.53424878,0.00013699,2]
[400541695,1767707439901,-5929.53424878,0.00013699,2]
[400541696,1767707439910,-5929.53424878,0.00013699,2]
[400541697,1767707439919,-5929.53424878,0.00013699,2]
[400541698,1767707439928,-5929.53424878,0.00013699,2]
[400541699,1767707439938,-5929.53424878,0.00013699,2]
[400541700,1767707439947,-5929.53424878,0.00013699,2]
[400541701,1767707439956,-5929.53424878,0.00013699,2]
[400541702,1767707439966,-5929.53424878,0.00013699,2]
[400541703,1767707439975,-5929.53424878,0.00013699,2]
[400541704,1767707439985,-5929.53424878,0.00013699,2]
[400541705,1767707439995,-5929.53424878,0.00013699,2]
[400541706,1767707440004,-5929.53424878,0.00013699,2]
[400541707,1767707440013,-5929.53424878,0.00013699,2]
[400541708,1767707440023,-5929.53424878,0.00013699,2]
[400541709,1767707440033,-5929.53424878,0.00013699,2]
[400541710,1767707440043,-5929.53424878,0.00013699,2]
[400541711,1767707440052,-5929.53424878,0.00013699,2]
[400541712,1767707440062,-5929.53424878,0.00013699,2]
[400541713,1767707440071,-5929.53424878,0.00013699,2]
[400541714,1767707440081,-5929.53424878,0.00013699,2]
[400541715,1767707440090,-5929.53424878,0.00013699,2]
[400541716,1767707440099,-5929.53424878,0.00013699,2]
[400541717,1767707440110,-5929.53424878,0.00013699,2]
[400541718,1767707440119,-5929.53424878,0.00013699,2]
[400541719,1767707440129,-5929.53424878,0.00013699,2]
[400541720,1767707440139,-5929.53424878,0.00013699,2]
[400541721,1767707440149,-5929.53424878,0.00013699,2]
[400541722,1767707440159,-5929.53424878,0.00013699,2]
[400541723,1767707440168,-5929.53424878,0.00013699,2]
[400541724,1767707440177,-5929.53424878,0.00013699,2]
[400541725,1767707440187,-5929.53424878,0.00013699,2]
[400541726,1767707440195,-5929.53424878,0.00013699,2]
[400541727,1767707440205,-5929.53424878,0.00013699,2]
[400541728,1767707440213,-5929.53424878,0.00013699,2]
[400541729,1767707440222,-5929.53424878,0.00013699,2]
[400541730,1767707440231,-5929.53424878,0.00013699,2]
[400541731,1767707440240,-6021.37215298,0.00013699,2]
[400541732,1767707440249,-6021.37215298,0.00013699,2]
[400541733,1767707440259,-6021.37215298,0.00013699,2]
[400541734,1767707440268,-6021.37215298,0.00013699,2]
[400541735,1767707440277,-6021.37215298,0.00013699,2]
[400541736,1767707440286,-6021.37215298,0.00013699,2]
[400541737,1767707440295,-6021.37215298,0.00013699,2]
[400541738,1767707440305,-6021.37215298,0.00013699,2]
[400541739,1767707440314,-6021.37215298,0.00013699,2]
[400541740,1767707440323,-6021.37215298,0.00013699,2]
[400541741,1767707440332,-6021.37215298,0.00013699,2]
[400541742,1767707440341,-6021.37215298,0.00013699,2]
[400541743,1767707440350,-6021.37215298,0.00013699,2]
[400541744,1767707440360,-6021.37215298,0.00013699,2]
[400541745,1767707440369,-6021.37215298,0.00013699,2]
[400541746,1767707440377,-6021.37215298,0.00013699,2]
[400541747,1767707440387,-6021.37215298,0.00013699,2]
[400541748,1767707440396,-6021.37215298,0.00013699,2]
[400541749,1767707440414,-6021.37215298,0.00013699,2]
[400541750,1767707440435,-6021.37215298,0.00013699,2]
[400541751,1767707440449,-6021.37215298,0.00013699,2]
[400541752,1767707440458,-6021.37215298,0.00013699,2]
[400541753,1767707440467,-6021.37215298,0.00013699,2]
[400541754,1767707440477,-6021.37215298,0.00013699,2]
[400541755,1767707440487,-6021.37215298,0.00013699,2]
[400541756,1767707440495,-6021.37215298,0.00013699,2]
[400541757,1767707440505,-6021.37215298,0.00013699,2]
[400541758,1767707440514,-6021.37215298,0.00013699,2]
[400541759,1767707440523,-6021.37215298,0.00013699,2]
[400541760,1767707440533,-6021.37215298,0.00013699,2]
[400541761,1767707440542,-9615.02927346,0.00013699,2]
[400541762,1767707440551,-9615.02927346,0.00013699,2]
[400541763,1767707440560,-9615.02927346,0.00013699,2]
[400541764,1767707440571,-9615.02927346,0.00013699,2]
[400541765,1767707440583,-151.0,0.00013699,2]
[400541766,1767707440592,-151.418138,0.00013699,2]
[400541767,1767707440601,-151.0,0.00013699,2]
[400541768,1767707440611,-151.0,0.00013699,2]
[400541769,1767707440622,-151.0,0.00013699,2]
[400541770,1767707440631,-151.0,0.00013699,2]
[400541771,1767707440641,-151.0,0.00013699,2]
[400541772,1767707440653,-151.0,0.00013699,2]
[400541773,1767707440662,-151.0,0.00013699,2]
[400541774,1767707440671,-151.0,0.00013699,2]
[400541775,1767707440680,-151.0,0.00013699,2]
[400541776,1767707440689,-151.0,0.00013699,2]
[400541777,1767707440699,-151.0,0.00013699,2]
[400541778,1767707440707,-151.0,0.00013699,2]
[400541779,1767707440717,-151.0,0.00013699,2]
[400541780,1767707440725,-151.0,0.00013699,2]
[400541781,1767707440735,-151.0,0.00013699,2]
[400541782,1767707440744,-500.0,0.00013699,2]
[400541783,1767707440752,-481.66284912,0.00013699,2]
[400541784,1767707440762,-156.236454,0.00013699,2]
[400541785,1767707440771,-1326.0,0.000137,3]
[400541786,1767707440779,-438.76198679,0.00013821,2]
[400541787,1767707440789,-1000.0,0.00013821,2]
[400541788,1767707440798,-1000.0,0.00013821,2]
[400541789,1767707440806,-1000.0,0.00013821,2]
[400541790,1767707440816,-394.52598303,0.00013821,2]
[400541791,1767707440824,-1000.0,0.00013821,2]
[400541792,1767707440833,-1000.0,0.00013821,2]
[400541793,1767707440843,-1000.0,0.00013821,2]
[400541794,1767707440852,-366.63,0.00013903,2]
[400541795,1767707440861,-553.64373807,0.00014002,2]
[400541796,1767707440870,-6019.98702435,0.00014002,2]
[400541797,1767707440886,-1197.57370402,0.00014002,2]
[400541798,1767707440901,-19838.64996547,0.00014002,2]
[400541799,1767707440910,-2674.60743027,0.00014002,2]
[400541800,1767707440919,-600.6566519,0.00014034,2]
[400541801,1767707440929,-353.87546143,0.00014163,2]
[400541802,1767707440938,-177.59308758,0.00014175,2]
[400541803,1767707440948,-228.04503738,0.00014175,2]
[400541804,1767707440957,-293.3778889,0.00014175,2]
[400541805,1767707440967,-250.76490403,0.0001419,2]
[400541806,1767707440977,-600.0,0.00014221,2]
[400541807,1767707440987,-502.2601968,0.00014247,2]
[400541808,1767707440996,-500.0,0.00014247,2]
[400541809,1767707441006,-500.0,0.00014247,2]
[400541810,1767707441017,-504.92626039,0.00014247,2]
[400541811,1767707441027,-833.37781316,0.00014247,2]
[400541812,1767707441037,-130.10692609,0.00014247,2]
[400541813,1767707441103,-238.18406258,0.00011848,2]
[400541814,1767707441115,-1343.89,0.00012329,2]
[400541815,1767707441126,-375.0390824,0.00014247,2]
[400541816,1767707441136,-587.0,0.00014282,2]
[400541817,1767707441146,-8793.42385299,0.00014364,2]
[400541818,1767707441156,-500.0,0.00014368,2]
[400541819,1767707441166,-500.0,0.00014368,2]
[400541820,1767707441176,-720.0,0.0001444,2]
[400541821,1767707441185,-160.0,0.00014537,2]
[400541822,1767707441194,-1041.66666667,0.00014537,2]
[400541823,1767707441204,-2164.8532844,0.00014549,2]
[400541824,1767707441214,-574.12855637,0.0001455,2]
[400541825,1767707441223,-2773.56790519,0.0001455,2]
[400541826,1767707441232,-2164.8532843,0.00014594,2]
[400541827,1767707441241,-407.36,0.00014634,2]
[400541828,1767707441251,-300.0,0.00014768,2]
[400541829,1767707441260,-227.42,0.00014795,3]
[400541830,1767707441269,-370.74470068,0.00014812,2]
[400541831,1767707441278,-4913.03886392,0.00014882,2]
[400541864,1767707445390,-8910.51487676,0.00014882,2]
[400541867,1767707445402,-1665.0,0.00014882,2]
[400541876,1767707471036,614.89738684,0.00030136,120]
[400541877,1767707472854,549.12782569,0.00030136,120]
[400541878,1767707483502,419.56213393,0.00030136,120]
[400541879,1767707491031,458.34038574,0.00030136,120]
[400541880,1767707494025,501.4420578,0.00030136,120]
[400541881,1767707496013,287.56912485,0.00030136,120]
[400541882,1767707496088,500.0,0.00030136,120]
[400541883,1767707496773,256.08729689,0.00030136,120]
[400541884,1767707497894,318.03017222,0.00030136,120]
[400541885,1767707499409,281.61806264,0.00030136,120]
[400541886,1767707499552,267.89531226,0.00030136,120]
[400541887,1767707501253,500.0,0.00030136,120]
[400541888,1767707503550,247.99329036,0.00030136,120]
[400541889,1767707504600,554.18002006,0.00030136,120]
[400541890,1767707505778,507.22494061,0.00030136,120]
[400541891,1767707506398,507.72715835,0.00030136,120]
[400541892,1767707508761,598.30813184,0.00030136,120]
[400541893,1767707510667,398.86443403,0.00030136,120]
[400541894,1767707512482,247.4525424,0.00030136,120]
[400541895,1767707514747,500.0,0.00030136,120]
[400541896,1767707518217,164.80642814,0.00030136,120]
[400541897,1767707519937,501.29970339,0.00030136,120]
[400541898,1767707520486,193.72400991,0.00030136,120]
[400541899,1767707521775,500.0,0.00030136,120]
[400541900,1767707523655,500.0,0.00030136,120]
[400541901,1767707526354,479.75307519,0.00030136,120]
[400541902,1767707527126,560.41475702,0.00030136,120]
[400541903,1767707528845,500.0,0.00030136,120]
[400541904,1767707530993,530.56344891,0.00030136,120]
[400541905,1767707531071,205.90224524,0.00030136,120]
[400541906,1767707532192,470.12028557,0.00030136,120]
[400541907,1767707532848,376.56350363,0.00030136,120]
[400541908,1767707535708,584.78985372,0.00030136,120]
[400541909,1767707537038,500.0,0.00030136,120]
[400541910,1767707538200,529.17519939,0.00030136,120]
[400541911,1767707540111,562.67021382,0.00030136,120]
[400541912,1767707540826,500.0,0.00030136,120]
[400541913,1767707542403,503.8852791,0.00030136,120]
[400541914,1767707543689,517.18743718,0.00030136,120]
[400541915,1767707544438,315.51786695,0.00030136,120]
[400541916,1767707545557,321.33293668,0.00030136,120]
[400541917,1767707545635,500.0,0.00030136,120]
[400541918,1767707548983,535.7467245,0.00030136,120]
[400541919,1767707550731,598.40141549,0.00030136,120]
[400541920,1767707552052,500.0,0.00030136,120]
[400541921,1767707553002,562.55045318,0.00030136,120]
[400541922,1767707553631,265.50067067,0.00030136,120]
[400541923,1767707553836,500.0,0.00030136,120]
[400541924,1767707554109,500.0,0.00030136,120]
[400541925,1767707556170,519.7589739,0.00030136,120]
[400541926,1767707557004,466.74724745,0.00030136,120]
[400541927,1767707563424,161.85945473,0.00030136,120]
[400541928,1767707563502,285.83607622,0.00030136,120]
[400541929,1767707563709,500.0,0.00030136,120]
[400541930,1767707563849,500.0,0.00030136,120]
[400541931,1767707564756,500.0,0.00030136,120]
[400541932,1767707565809,276.67979485,0.00030136,120]
[400541933,1767707567280,500.0,0.00030136,120]
[400541934,1767707568881,584.19571572,0.00030136,120]
[400541935,1767707569078,500.0,0.00030136,120]
[400541936,1767707570241,500.0,0.00030136,120]
[400541937,1767707570469,624.76067812,0.00030136,120]
[400541938,1767707570709,457.17834485,0.00030136,120]
[400541939,1767707572553,500.0,0.00030136,120]
[400541940,1767707572685,372.42691946,0.00030136,120]
[400541941,1767707576378,500.0,0.00030136,120]
[400541942,1767707576619,500.0,0.00030136,120]
[400541943,1767707576851,500.0,0.00030136,120]
[400541944,1767707577124,500.0,0.00030136,120]
[400541945,1767707577400,500.0,0.00030136,120]
[400541946,1767707577661,500.0,0.00030136,120]
[400541947,1767707577913,500.0,0.00030136,120]
[400541948,1767707578145,500.0,0.00030136,120]
[400541949,1767707578329,425.33919224,0.00030136,120]
[400541950,1767707578393,255.46341198,0.00030136,120]
[400541951,1767707578594,500.0,0.00030136,120]
[400541952,1767707585717,500.0,0.00030136,120]
[400541953,1767707586895,213.41004555,0.00030136,120]
[400541954,1767707588174,500.0,0.00030136,120]
[400541955,1767707591632,500.0,0.00030136,120]
[400541956,1767707594303,561.41584488,0.00030136,120]
[400541957,1767707595673,473.86494601,0.00030136,120]
[400541958,1767707596813,500.0,0.00030136,120]
[400541959,1767707597832,500.0,0.00030136,120]
[400541960,1767707602030,500.0,0.00030136,120]
[400541961,1767707602948,549.90049994,0.00030136,120]
[400541962,1767707603390,560.8472294,0.00030136,120]
[400541963,1767707604994,500.0,0.00030136,120]
[400541964,1767707605235,500.0,0.00030136,120]
[400541965,1767707607029,500.0,0.00030136,120]
[400541966,1767707607094,532.49577028,0.00030136,120]
[400541967,1767707609404,500.0,0.00030136,120]
[400541968,1767707609539,421.96657398,0.00030136,120]
[400541969,1767707611760,500.0,0.00030136,120]
[400541970,1767707612031,500.0,0.00030136,120]
[400541971,1767707612273,500.0,0.00030136,120]
[400541972,1767707612529,500.0,0.00030136,120]
[400541973,1767707612766,500.0,0.00030136,120]
[400541974,1767707613008,500.0,0.00030136,120]
[400541975,1767707613195,532.25986598,0.00030136,120]
[400541976,1767707613265,500.0,0.00030136,120]
[400541977,1767707613495,500.0,0.00030136,120]
[400541978,1767707613751,500.0,0.00030136,120]
[400541979,1767707613994,500.0,0.00030136,120]
[400541980,1767707614283,240.88,0.00030136,120]
[400541981,1767707614361,512.22740412,0.00030136,120]
[400541982,1767707615121,460.4,0.00030136,120]
[400541983,1767707616213,504.13154671,0.00030136,120]
[400541984,1767707616821,502.40395742,0.00030136,120]
[400541985,1767707618643,500.0,0.00030136,120]
[400541986,1767707619537,217.23116783,0.00030136,120]
[400541987,1767707620133,506.44950433,0.00030136,120]
[400541988,1767707621865,500.0,0.00030136,120]
[400541989,1767707622894,508.8056926,0.00030136,120]
[400541990,1767707624367,583.33253814,0.00030136,120]
[400541991,1767707624728,500.0,0.00030136,120]
[400541992,1767707626661,217.63076912,0.00030136,120]
[400541993,1767707628088,427.43747736,0.00030136,120]
[400541994,1767707628408,637.31256629,0.00030136,120]
[400541995,1767707630116,511.06435948,0.00030136,120]
[400541996,1767707631859,500.0,0.00030136,120]
[400541997,1767707632885,500.0,0.00030136,120]
[400541998,1767707635061,266.39793941,0.00030136,120]
[400541999,1767707637538,322.54584535,0.00030136,120]
[400542000,1767707643089,478.22141867,0.00030136,120]
[400542001,1767707646252,505.93145675,0.00030136,120]
[400542002,1767707647318,473.52625426,0.00030136,120]
[400542003,1767707648169,300.02050347,0.00030136,120]
[400542004,1767707651900,563.41254708,0.00030136,120]
[400542005,1767707652896,500.0,0.00030136,120]
[400542006,1767707657014,500.0,0.00030136,120]
[400542007,1767707659236,517.45947016,0.00030136,120]
[400542008,1767707660141,500.0,0.00030136,120]
[400542009,1767707663422,200.86081941,0.00030136,120]
[400542010,1767707670076,328.58365279,0.00030136,120]
[400542011,1767707672703,477.18898008,0.00030136,120]
[400542012,1767707673255,325.33062753,0.00030136,120]
[400542013,1767707676005,500.0,0.00030136,120]
[400542014,1767707679389,453.50031632,0.00030136,120]
[400542015,1767707680476,500.0,0.00030136,120]
[400542016,1767707681020,196.91313859,0.00030136,120]
[400542017,1767707684591,536.07729194,0.00030136,120]
[400542018,1767707688962,452.24216363,0.00030136,120]
[400542019,1767707690773,499.41652791,0.00030136,120]
[400542020,1767707691302,283.63476908,0.00030136,120]
[400542021,1767707692227,500.0,0.00030136,120]
[400542022,1767707694874,500.0,0.00030136,120]
[400542023,1767707695646,553.67892909,0.00030136,120]
[400542024,1767707697945,543.50706152,0.00030136,120]
[400542025,1767707698247,500.0,0.00030136,120]
[400542026,1767707706736,162.0,0.00029202,120]
[400542027,1767707711007,292.95741448,0.00030136,120]
[400542028,1767707713673,461.96002243,0.00030136,120]
[400542029,1767707716970,480.00000001,0.00030136,120]
[400542030,1767707721790,568.75876184,0.00030136,120]
[400542031,1767707722179,500.0,0.00030136,120]
[400542032,1767707724227,500.0,0.00030136,120]
[400542033,1767707726817,286.52912445,0.00030136,120]
[400542034,1767707729584,506.22856757,0.00030136,120]
[400542035,1767707733155,500.0,0.00030136,120]
[400542036,1767707733938,500.0,0.00030136,120]
[400542037,1767707735440,551.04212036,0.00030136,120]
[400542038,1767707736029,530.41772954,0.00030136,120]
[400542039,1767707738340,384.94591151,0.00030136,120]
[400542040,1767707738763,500.0,0.00030136,120]
[400542041,1767707739094,279.90725434,0.00030136,120]
[400542042,1767707739401,500.0,0.00030136,120]
[400542043,1767707740451,455.82975261,0.00030136,120]
[400542044,1767707740925,519.96535454,0.00030136,120]
[400542045,1767707744384,511.74230482,0.00030136,120]
[400542046,1767707749449,500.0,0.00030136,120]
[400542047,1767707752630,364.72871565,0.00030136,120]
[400542048,1767707756391,500.0,0.00030136,120]
[400542049,1767707758306,500.0,0.00030136,120]
[400542050,1767707761230,500.0,0.00030136,120]
[400542051,1767707763047,500.0,0.00030136,120]
[400542052,1767707764887,500.0,0.00030136,120]
[400542053,1767707766687,500.0,0.00030136,120]
[400542054,1767707771893,500.0,0.00030136,120]
[400542055,1767707773728,282.93242986,0.00030136,120]
[400542056,1767707773806,500.0,0.00030136,120]
[400542057,1767707777089,500.0,0.00030136,120]
[400542058,1767707777173,500.0,0.00030136,120]
[400542059,1767707778877,500.0,0.00030136,120]
[400542060,1767707780648,263.81653524,0.00030136,120]
[400542061,1767707780858,547.16923155,0.00030136,120]
[400542062,1767707782154,500.0,0.00030136,120]
[400542063,1767707782396,500.0,0.00030136,120]
[400542064,1767707782626,500.0,0.00030136,120]
[400542065,1767707782853,500.0,0.00030136,120]
[400542066,1767707783118,165.03,0.00030136,120]
[400542067,1767707790506,500.0,0.00030136,120]
[400542068,1767707793940,500.0,0.00030136,120]
[400542069,1767707806510,500.0,0.00030136,120]
[400542070,1767707806684,500.0,0.00030136,120]
[400542071,1767707808407,500.0,0.00030136,120]
[400542072,1767707813765,500.0,0.00030136,120]
[400542073,1767707814563,500.0,0.00030136,120]
[400542074,1767707816626,500.0,0.00030136,120]
[400542075,1767707820265,209.69543802,0.00030136,120]
[400542076,1767707820575,500.0,0.00030136,120]